bitfinex-derivatives/quotes_ETHF0:USTF0_20251116
["timestamp","ask_amount","ask_price","bid_price","bid_amount"]
[1763304504887,0.00408298,3175.0,3174.9,2.38161873]
[1763304505087,0.00408298,3175.0,3174.9,17.87161873]
[1763304505288,0.00408298,3175.0,3174.9,18.70814867]
[1763304505595,0.00408298,3175.0,3174.9,17.87161873]
[1763304507295,0.00408298,3175.0,3174.9,18.98699198]
[1763304507794,1.4981,3176.1,3176.0,1.5841]
[1763304507992,6.95576687,3176.1,3176.0,17.0711]
[1763304508188,2.24986687,3176.1,3176.0,17.0711]
[1763304508389,4.7059,3176.5,3176.4,1.5841]
[1763304508695,3.21023525,3176.5,3176.4,2.38248857]
[1763304508890,7.84090212,3176.5,3176.4,0.79838857]
[1763304509093,7.84090212,3176.5,3176.4,2.31798857]
[1763304509297,1.5369,3176.4,3176.3,15.486]
[1763304509593,3.78676687,3176.4,3176.3,17.80394573]
[1763304511288,3.78676687,3176.4,3176.3,16.28434573]
[1763304511703,3.78676687,3176.4,3176.3,2.31794573]
[1763304511906,3.78676687,3176.4,3176.3,0.79834573]
[1763304512089,1.5369,3176.2,3176.1,15.483]
[1763304512296,1.5369,3176.2,3175.9,3.871]
[1763304512297,2.3808,3176.0,3175.9,5.3906]
[1763304512596,4.63066687,3176.0,3175.9,6.18882635]
[1763304513403,7.83846687,3176.0,3175.9,4.66922635]
[1763304515097,7.83846687,3176.0,3175.9,0.79822635]
[1763304522109,5.45766687,3176.0,3175.9,2.31782635]
[1763304522406,3.2078,3176.0,3175.9,2.31782635]
[1763304523312,7.83846687,3176.0,3175.9,0.79822635]
[1763304524616,1.5369,3175.8,3175.7,0.00472373]
[1763304524910,3.78676687,3175.8,3175.7,0.80587698]
[1763304525212,3.78676687,3175.8,3175.7,2.32547698]
[1763304526912,3.78676687,3175.8,3175.7,0.80587698]
[1763304528009,1.5369,3175.3,3174.8,5.84141241]
[1763304528221,3.2078,3175.2,3174.8,4.7274]
[1763304528514,4.7447,3175.2,3175.1,1.5196]
[1763304528716,1.5369,3175.2,3175.1,1.5196]
[1763304528921,3.78676687,3175.2,3175.1,1.5196]
[1763304530222,3.78676687,3175.2,3174.8,3.21252373]
[1763304530405,0.8486037,3175.5,3174.8,3.21252373]
[1763304530406,2.24986687,3175.1,3174.8,3.21252373]
[1763304530605,2.24986687,3175.4,3174.8,3.21252373]
[1763304530811,1.5369,3174.9,3174.8,4.73212373]
[1763304531105,1.5369,3174.9,3174.8,3.21252373]
[1763304531306,3.78676687,3174.9,3174.8,3.21252373]
[1763304531711,3.78676687,3174.9,3174.8,4.73212373]
[1763304538524,3.78676687,3174.9,3174.8,1.52432373]
[1763304540018,3.78676687,3174.9,3174.8,2.32148039]
[1763304542224,0.8486037,3175.5,3174.8,2.32148039]
[1763304542225,3.2125037,3175.5,3175.4,1.3505]
[1763304542418,3.2125037,3175.5,3175.4,2.14741755]
[1763304542722,6.86147057,3175.5,3175.4,2.14741755]
[1763304542920,1.3991,3174.9,3174.8,4.32653614]
[1763304543118,1.3991,3174.9,3174.8,4.00950744]
[1763304543315,3.64896687,3174.9,3174.8,0.80170744]
[1763304543522,6.85676687,3174.9,3174.8,0.00472373]
[1763304546824,6.85676687,3174.9,3174.8,1.35522373]
[1763304548027,6.85676687,3174.9,3174.8,0.00472373]
[1763304549231,6.85676687,3174.9,3174.8,2.373e-05]
[1763304552128,6.85676687,3174.9,3174.8,1.35052373]
[1763304552328,6.85676687,3174.9,3174.8,2.1491915]
[1763304553633,5.45766687,3174.9,3174.8,2.1491915]
[1763304553827,6.85676687,3174.9,3174.8,2.1491915]
[1763304554533,5.45766687,3174.9,3174.8,2.373e-05]
[1763304554834,1.2263,3174.1,3174.0,3.2078]
[1763304555033,1.2263,3174.1,3174.0,6.01038366]
[1763304555231,3.9422,3174.5,3174.0,6.01038366]
[1763304555437,1.2263,3174.2,3174.1,2.06098366]
[1763304555627,0.00291283,3174.2,3174.1,0.80315139]
[1763304555827,0.00291283,3174.2,3174.1,2.06465139]
[1763304556228,0.00291283,3174.2,3174.1,3.73778522]
[1763304556435,0.00291283,3174.2,3174.1,2.06465139]
[1763304557036,1.22921283,3174.2,3174.1,3.74618987]
[1763304557231,1.22921283,3174.2,3174.1,3.18580474]
[1763304557935,3.4790797,3174.2,3174.1,0.80315139]
[1763304558834,3.4790797,3174.2,3174.1,0.00366773]
[1763304559830,1.2263,3173.3,3173.2,4.4693]
[1763304560033,1.2263,3173.3,3173.2,5.26910543]
[1763304560433,3.2078,3173.7,3173.2,5.26910543]
[1763304560634,4.4341,3173.7,3173.6,1.2615]
[1763304560834,4.4341,3173.7,3173.6,2.06530304]
[1763304561034,6.68396687,3173.7,3173.6,0.80380304]
[1763304561234,6.68396687,3173.7,3173.6,0.00399761]
[1763304563337,6.68396687,3173.7,3173.6,1.26549761]
[1763304564739,6.68396687,3173.7,3173.6,0.00399761]
[1763304565635,6.68396687,3173.7,3173.6,1.26549761]
[1763304567146,3.2078,3173.7,3173.6,2.06331058]
[1763304567642,4.4341,3173.7,3173.6,2.06331058]
[1763304567939,6.68396687,3173.7,3173.6,0.80181058]
[1763304568441,3.2078,3173.7,3173.6,2.06331058]
[1763304569343,4.4341,3173.7,3173.6,2.06331058]
[1763304570844,3.2078,3173.7,3173.6,2.06331058]
[1763304571245,4.4578,3173.7,3173.6,2.06331058]
[1763304572448,4.4578,3173.7,3173.6,0.80181058]
[1763304573334,6.70766687,3173.7,3173.6,0.80181058]
[1763304574347,6.70766687,3173.7,3173.6,0.00399761]
[1763304577343,1.25,3173.4,3173.3,0.00472373]
[1763304577540,3.49986687,3173.4,3173.3,0.00472373]
[1763304578449,3.49986687,3173.4,3173.3,0.00746066]
[1763304580355,1.25,3172.7,3172.6,3.871]
[1763304580554,1.25,3172.7,3172.6,5.89584781]
[1763304581353,1.25,3172.7,3172.6,5.89844711]
[1763304582958,0.7508,3173.0,3172.6,5.89844711]
[1763304583147,1.25,3172.9,3172.8,1.225]
[1763304583353,1.25,3172.9,3172.8,2.02484781]
[1763304583651,3.49986687,3172.9,3172.8,2.02484781]
[1763304584963,3.49986687,3172.9,3172.8,0.79984781]
[1763304586951,3.49986687,3172.9,3172.8,2.02484781]
[1763304587862,3.49986687,3172.9,3172.8,0.79984781]
[1763304590664,3.49986687,3172.9,3172.5,0.709]
[1763304590665,1.25,3172.6,3172.5,0.39080266]
[1763304590864,1.25,3172.4,3172.3,1.22972373]
[1763304591064,1.25,3172.7,3172.6,1.225]
[1763304591367,1.25,3172.6,3172.5,1.934]
[1763304591664,1.25,3172.6,3172.5,1.93736753]
[1763304592661,1.25,3172.6,3172.5,1.22836753]
[1763304592867,3.49986687,3172.6,3172.5,0.00336753]
[1763304595167,3.49986687,3172.6,3172.5,1.22836753]
[1763304596363,3.49986687,3172.6,3172.5,0.00336753]
[1763304602571,3.49986687,3172.6,3172.5,1.80876753]
[1763304603165,3.49986687,3172.6,3172.5,2.60404708]
[1763304603574,3.49986687,3172.6,3172.5,1.92214708]
[1763304604176,3.49986687,3172.6,3172.5,0.79864708]
[1763304604367,3.49986687,3172.6,3172.5,1.92214708]
[1763304605276,3.49986687,3172.6,3172.5,0.79864708]
[1763304610181,3.49986687,3172.6,3172.5,1.92214708]
[1763304610379,2.24986687,3172.6,3172.5,2.60404708]
[1763304610883,3.33156687,3172.6,3172.5,2.60404708]
[1763304611079,3.33156687,3172.6,3172.5,0.79864708]
[1763304611984,3.33156687,3172.6,3172.5,2.60404708]
[1763304613683,3.33156687,3172.6,3172.5,1.92214708]
[1763304614279,3.33156687,3172.6,3172.5,0.79864708]
[1763304616284,3.2078,3173.1,3173.0,1.6975]
[1763304616472,3.2078,3173.1,3173.0,2.49277955]
[1763304616676,5.45766687,3173.1,3173.0,2.49277955]
[1763304617887,6.51686687,3173.1,3173.0,2.49277955]
[1763304619680,3.30906687,3173.1,3173.0,2.49277955]
[1763304621987,6.51686687,3173.1,3172.7,1.12523946]
[1763304622189,1.0576,3172.4,3172.1,1.62450066]
[1763304622485,1.0576,3172.4,3172.0,4.33303946]
[1763304622486,1.0576,3172.4,3172.0,3.8223]
[1763304623085,1.0576,3172.4,3172.3,0.00825414]
[1763304630889,1.7026024,3172.6,3171.5,1.8348]
[1763304631193,4.293,3172.1,3172.0,1.8061]
[1763304631795,4.293,3172.1,3172.0,0.68374592]
[1763304632883,4.293,3172.1,3172.0,1.80954592]
[1763304633294,4.293,3172.1,3172.0,0.00344592]
[1763304634893,4.293,3172.1,3172.0,1.80954592]
[1763304635598,4.293,3172.1,3172.0,0.68374592]
[1763304635990,4.293,3172.1,3172.0,0.00344592]
[1763304636393,1.0852,3171.8,3171.7,0.00472373]
[1763304637396,1.08759893,3171.8,3171.7,0.00694709]
[1763304638995,1.08759893,3171.8,3171.7,1.13274709]
[1763304639191,1.08759893,3171.8,3171.7,0.00694709]
[1763304639393,1.08759893,3171.8,3171.7,1.13274709]
[1763304639696,0.00239893,3171.8,3171.7,1.13274709]
[1763304641400,1.08759893,3171.8,3171.7,1.13274709]
[1763304643099,0.00239893,3171.8,3171.7,1.13274709]
[1763304646204,0.00239893,3171.8,3171.7,1.91742357]
[1763304650595,3.2078,3172.3,3172.2,1.1258]
[1763304650800,3.2078,3172.3,3172.2,1.91047648]
[1763304651598,3.21100735,3172.3,3172.2,1.91047648]
[1763304655802,4.29620735,3172.3,3172.2,1.91047648]
[1763304657197,1.08840735,3172.3,3172.2,1.91047648]
[1763304660500,1.08840735,3172.3,3172.2,0.78467648]
[1763304661311,1.08840735,3172.3,3171.7,1.12814541]
[1763304661312,0.7749,3171.8,3171.7,0.00694709]
[1763304661606,0.7749,3171.8,3171.7,0.79251481]
[1763304661910,0.7749,3171.8,3171.7,1.73331481]
[1763304662710,0.00320735,3172.3,3171.7,1.73331481]
[1763304662909,0.00320735,3172.3,3171.8,0.78556772]
[1763304663110,0.00320735,3172.3,3171.7,0.00694709]
[1763304664309,0.7749,3171.9,3171.8,1.72649822]
[1763304665805,0.00320735,3172.3,3171.8,1.72649822]
[1763304666013,0.00320735,3172.3,3171.8,0.9408]
[1763304666313,0.7749,3171.9,3171.8,0.9408]
[1763304667113,0.00320735,3172.3,3171.8,1.72656505]
[1763304667405,0.00320735,3172.3,3171.8,0.9408]
[1763304667610,0.7749,3171.9,3171.8,0.9408]
[1763304667807,0.7749,3171.9,3171.8,1.72626157]
[1763304668912,3.9827,3172.1,3172.0,1.5399]
[1763304672115,3.9827,3172.1,3172.0,0.5991]
[1763304674720,3.9827,3172.1,3172.0,1.5399]
[1763304675417,3.9827,3172.1,3172.0,0.5991]
[1763304675609,3.9827,3172.1,3172.0,1.5644]
[1763304676212,3.9827,3172.1,3172.0,0.5991]
[1763304679515,3.2078,3172.1,3172.0,1.5644]
[1763304679813,1.7026024,3173.0,3172.9,0.9653]
[1763304680020,1.4492,3173.0,3172.9,0.78268587]
[1763304680520,1.4492,3173.0,3172.9,0.78488427]
[1763304680721,1.45269443,3173.0,3172.5,1.28069874]
[1763304680921,0.00349443,3173.0,3172.9,0.9653]
[1763304681120,0.00349443,3173.0,3172.9,1.75020501]
[1763304681321,0.89969443,3173.0,3172.9,1.75020501]
[1763304681723,0.89969443,3173.0,3172.9,0.9653]
[1763304681920,0.00349443,3173.0,3172.9,1.74982245]
[1763304682222,0.00349443,3173.0,3172.9,0.9653]
[1763304684015,1.45269443,3173.0,3172.9,0.9653]
[1763304684412,1.45269443,3173.0,3172.5,0.4398]
[1763304684616,0.00349443,3173.0,3172.9,0.9653]
[1763304685327,0.89969443,3173.0,3172.9,0.9653]
[1763304685620,0.00349443,3173.0,3172.9,0.9653]
[1763304689024,3.2078,3173.7,3173.6,0.9439]
[1763304689324,1.4734,3174.5,3174.4,0.9439]
[1763304689511,0.9204,3174.5,3174.4,0.9439]
[1763304689716,4.6812,3175.0,3174.9,0.9439]
[1763304689919,3.2078,3175.0,3174.9,0.9439]
[1763304690121,3.21040569,3175.0,3174.9,0.94631414]
[1763304690425,4.13080569,3175.0,3174.9,0.94631414]
[1763304691017,4.70940569,3175.0,3174.9,0.00241414]
[1763304691217,0.9204,3174.7,3173.9,3.2078]
[1763304691427,3.7864,3174.5,3173.9,3.2078]
[1763304692220,3.7864,3174.5,3173.9,3.21602294]
[1763304692723,0.9204,3174.0,3173.9,4.15992294]
[1763304693725,1.499,3174.0,3173.9,3.21602294]
[1763304694317,1.499,3174.0,3173.9,4.15992294]
[1763304695220,1.499,3174.0,3173.9,0.00822294]
[1763304698028,3.7864,3174.5,3173.9,0.95212294]
[1763304698222,4.7068,3174.5,3174.4,0.9439]
[1763304698827,0.9204,3174.1,3174.0,0.9439]
[1763304702321,1.499,3174.0,3173.9,0.00822294]
[1763304702525,0.3847,3172.8,3172.7,0.84089874]
[1763304702728,0.3847,3172.4,3172.3,1.12119832]
[1763304703029,0.3847,3172.1,3172.0,0.5549]
[1763304703329,3.2078,3172.4,3172.3,0.9439]
[1763304703633,3.2078,3172.4,3172.3,0.94650756]
[1763304703827,3.21025431,3172.4,3172.3,0.94650756]
[1763304708635,3.59495431,3172.4,3172.3,0.94650756]
[1763304708931,3.59495431,3172.4,3172.3,0.00260756]
[1763304713538,0.3821,3172.1,3172.0,0.00472373]
[1763304714336,0.3774,3171.7,3171.6,3.2078]
[1763304714541,0.3774,3171.7,3171.6,0.00311533]
[1763304714942,0.3774,3171.1,3171.0,0.5549]
[1763304715642,0.3774,3170.6,3170.5,0.5549]
[1763304716038,0.3774,3170.6,3170.5,0.55804523]
[1763304716437,0.3774,3170.6,3170.5,1.50194523]
[1763304717936,3.21252373,3170.9,3170.2,0.00316925]
[1763304717937,0.3743,3170.3,3170.2,0.00316925]
[1763304718136,3.5821,3170.3,3170.2,0.00316925]
[1763304719053,3.5821,3170.3,3170.2,0.0069236]
[1763304721652,3.5821,3170.3,3169.5,3.7627]
[1763304721954,0.3173,3169.6,3169.5,3.7627]
[1763304722157,0.3173,3169.6,3169.5,4.7299]
[1763304722457,0.3173,3169.6,3169.5,3.7627]
[1763304722656,0.32114119,3169.6,3169.5,3.76520123]
[1763304722858,0.3173,3169.1,3169.0,3.7627]
[1763304723060,0.3173,3169.1,3169.0,4.7299]
[1763304723653,0.3173,3169.1,3169.0,3.7627]
[1763304724057,0.3173,3168.8,3168.7,0.03155918]
[1763304724259,0.3173,3168.8,3168.7,0.03464209]
[1763304724447,0.00473126,3169.1,3169.0,1.5191]
[1763304724647,0.00384119,3169.6,3169.5,1.5191]
[1763304725757,3.21164119,3169.6,3169.5,1.5191]
[1763304725955,3.53374119,3169.6,3169.5,1.5191]
[1763304726156,3.53374119,3169.6,3169.5,0.5519]
[1763304726358,3.21164119,3169.6,3169.5,1.5191]
[1763304726751,0.00384119,3169.6,3169.5,1.5191]
[1763304727665,0.32594119,3169.6,3169.5,0.5519]
[1763304728056,0.00384119,3169.6,3169.5,1.5191]
[1763304728961,0.32594119,3169.6,3169.5,1.5191]
[1763304729156,0.3221,3169.3,3169.2,0.00473126]
[1763304729460,3.5299,3169.3,3169.2,0.00473126]
[1763304730458,0.3173,3168.8,3168.7,0.03464209]
[1763304730656,3.5251,3168.8,3168.7,0.00308291]
[1763304730854,0.3173,3168.1,3168.0,0.5519]
[1763304731257,0.3173,3167.7,3167.6,3.2078]
[1763304731459,0.3173,3167.7,3167.6,4.175]
[1763304731765,0.3173,3167.7,3167.6,0.97052081]
[1763304732164,0.00473126,3168.0,3167.9,0.9672]
[1763304736062,0.32203126,3168.0,3167.9,0.9672]
[1763304736262,0.00473126,3168.0,3167.9,0.9672]
[1763304737071,3.2078,3168.3,3168.2,0.8578]
[1763304738963,3.3652,3168.3,3168.2,0.8578]
[1763304739359,3.2078,3168.3,3168.2,0.8578]
[1763304740265,0.00473126,3168.6,3168.5,1.2843]
[1763304740466,4.0404,3168.9,3168.8,0.8578]
[1763304740658,3.2078,3168.9,3168.8,0.8578]
[1763304740854,4.0404,3168.9,3168.5,0.4265]
[1763304741068,4.0404,3168.9,3168.8,0.8578]
[1763304744567,4.0404,3168.9,3168.5,0.4265]
[1763304745364,4.0404,3168.9,3168.8,0.8578]
[1763304746161,0.00473126,3169.2,3169.1,0.8578]
[1763304747861,1.3823,3169.0,3168.9,3.2078]
[1763304748468,1.3823,3169.0,3168.9,4.0656]
[1763304748670,1.3823,3169.0,3168.9,3.2078]
[1763304751264,1.3823,3169.0,3168.5,3.6861]
[1763304752065,0.87133126,3169.2,3169.1,0.8517]
[1763304752774,0.87133126,3169.2,3168.6,1.10896755]
[1763304754065,7.23639393,3172.5,3170.0,3.2078]
[1763304754271,3.95983142,3173.1,3171.9,3.2078]
[1763304754469,0.5489,3174.5,3173.0,4.32379074]
[1763304754666,0.5489,3174.5,3172.7,42.47398612]
[1763304754667,4.1062489,3174.5,3173.9,2.79112539]
[1763304754869,0.5489,3175.0,3174.4,3.2078]
[1763304755071,3.88952293,3175.0,3174.9,5.43118245]
[1763304755367,3.88952293,3175.0,3174.9,4.14210537]
[1763304755368,3.89425419,3175.0,3174.9,4.14210537]
[1763304755560,0.00722799,3175.0,3174.9,4.14210537]
[1763304755767,3.2078,3176.3,3174.9,4.56845038]
[1763304755965,3.2078,3176.3,3174.4,2.21638628]
[1763304755966,8.0547896,3175.4,3175.3,1.10369378]
[1763304756165,8.0547896,3175.4,3175.3,4.56845038]
[1763304756572,0.5489,3176.4,3175.3,4.56845038]
[1763304756773,0.5489,3176.4,3175.2,1.65554067]
[1763304756774,0.00321728,3175.4,3175.2,1.65554067]
[1763304757071,0.00321728,3175.4,3175.3,4.55049506]
[1763304758172,0.00321728,3175.4,3175.3,6.18502132]
[1763304759072,3.34134348,3175.4,3175.3,4.55049506]
[1763304759280,8.92460688,3175.4,3175.3,4.55049506]
[1763304759477,0.00321728,3175.4,3175.3,4.55049506]
[1763304759776,8.05800688,3175.4,3175.3,4.55049506]
[1763304759974,3.34134348,3175.4,3175.3,4.55049506]
[1763304761076,0.00321728,3175.4,3175.3,4.5455964]
[1763304761276,3.34134348,3175.4,3175.3,4.5455964]
[1763304761474,8.92460688,3175.4,3175.3,3.62718533]
[1763304761672,0.8666,3174.8,3174.7,3.2078]
[1763304762776,0.5489,3175.2,3174.7,3.2078]
[1763304762972,4.7166634,3175.1,3174.7,3.2078]
[1763304763377,4.7166634,3175.0,3174.7,3.2078]
[1763304763568,0.5489,3175.2,3174.7,3.2078]
[1763304763569,4.7166634,3175.1,3174.7,3.2078]
[1763304763770,0.8666,3174.8,3174.7,3.2078]
[1763304763972,4.7166634,3175.0,3174.7,3.2078]
[1763304764178,4.7166634,3175.1,3174.7,3.2078]
[1763304764677,4.7166634,3175.0,3174.7,3.2078]
[1763304764868,4.7166634,3175.1,3174.7,3.2078]
[1763304765069,0.8666,3174.8,3174.7,3.2078]
[1763304765371,5.5832634,3174.8,3174.7,3.2078]
[1763304770480,0.5489,3175.2,3174.7,3.2078]
[1763304770671,0.8666,3174.8,3174.7,3.2078]
[1763304771076,0.8666,3174.8,3174.4,0.00868837]
[1763304771077,1.4155,3174.5,3174.4,0.00868837]
[1763304771380,6.1321634,3174.5,3174.4,0.00868837]
[1763304771683,0.8666,3173.9,3173.8,3.2078]
[1763304772577,5.5832634,3173.9,3173.8,3.2078]
[1763304772778,5.5832634,3173.9,3173.8,3.21169014]
[1763304773581,0.5489,3174.0,3173.8,3.62759706]
[1763304773784,0.5489,3174.0,3173.9,0.41590692]
[1763304774377,1.4155,3174.0,3173.9,0.41590692]
[1763304774984,6.1321634,3174.0,3173.9,0.41590692]
[1763304775287,6.1321634,3174.0,3173.9,6.92e-06]
[1763304777275,0.8666,3173.9,3173.8,0.00389014]
[1763304777474,5.5832634,3173.9,3173.8,0.00389014]
[1763304777674,0.8666,3173.6,3173.5,0.00472313]
[1763304777890,5.5832634,3173.6,3173.5,0.00472313]
[1763304778300,5.5832634,3173.6,3173.5,0.92429317]
[1763304778689,5.5832634,3173.6,3173.5,0.92741889]
[1763304779200,5.5832634,3173.6,3173.5,0.92883911]
[1763304781104,5.5832634,3173.6,3173.5,1.74176772]
[1763304781300,5.5832634,3173.6,3173.5,0.92883911]
[1763304782200,5.5832634,3173.6,3173.5,2.56336537]
[1763304783299,5.37824962,3173.6,3173.5,0.92883911]
[1763304784298,2.53867085,3173.6,3173.5,3.7199645]
[1763304784699,2.53867085,3173.6,3173.5,0.92883911]
[1763304785000,2.53867085,3173.6,3173.5,3.14845195]
[1763304785201,3.7567,3174.0,3173.9,0.8153]
[1763304785391,3.7567,3174.0,3173.9,3.95423995]
[1763304785593,4.87697085,3174.0,3173.9,3.95423995]
[1763304785992,4.87697085,3174.0,3173.9,3.95404379]
[1763304786295,6.29537085,3174.0,3173.9,0.92099026]
[1763304786797,0.00472313,3174.2,3174.1,0.8153]
[1763304787003,0.00472313,3174.2,3174.1,1.73629026]
[1763304787207,1.42312313,3174.2,3174.1,3.95381977]
[1763304787402,1.42312313,3174.2,3174.1,3.13851977]
[1763304787604,1.42312313,3174.2,3174.1,0.92099026]
[1763304787902,1.42312313,3174.2,3174.1,3.13851977]
[1763304788907,0.00472313,3174.2,3174.1,3.95381977]
[1763304789103,0.00472313,3174.2,3174.1,1.73629026]
[1763304789306,0.00472313,3174.2,3174.1,2.12182543]
[1763304790503,2.54339398,3174.2,3174.1,1.30652543]
[1763304790809,2.54339398,3174.2,3174.1,3.52960434]
[1763304791199,2.54339398,3174.2,3174.1,1.30652543]
[1763304795308,3.2078,3174.4,3174.1,3.53310159]
[1763304795607,1.3434,3174.2,3174.1,3.58377616]
[1763304795804,1.3434,3174.2,3174.1,4.85102551]
[1763304796006,3.2078,3174.4,3174.3,1.3572]
[1763304796211,3.2078,3174.4,3174.3,2.62712627]
[1763304797515,0.00472313,3174.7,3174.3,2.62712627]
[1763304797718,2.1449,3174.5,3174.4,1.26992627]
[1763304797912,2.1449,3174.5,3174.4,2.62712627]
[1763304798116,0.8015,3174.5,3174.4,2.62712627]
[1763304798315,0.00472313,3174.7,3174.6,1.3572]
[1763304798613,0.00472313,3174.7,3174.6,2.62712627]
[1763304801918,0.00472313,3174.7,3174.6,4.85310876]
[1763304802419,0.00472313,3174.7,3174.6,2.62497045]
[1763304803315,1.34812313,3174.7,3174.6,1.26777045]
[1763304803920,0.00472313,3174.7,3174.6,2.62497045]
[1763304805518,0.8015,3175.0,3174.9,1.3572]
[1763304805715,0.8015,3175.0,3174.9,2.62485541]
[1763304806114,3.2078,3175.3,3175.2,1.3572]
[1763304806414,0.00472313,3175.6,3175.3,1.3572]
[1763304806620,0.00472313,3175.6,3175.3,4.8508379]
[1763304807321,0.00472313,3175.6,3175.3,2.62485541]
[1763304808523,1.34661728,3175.4,3175.3,2.62485541]
[1763304808719,1.34661728,3175.4,3175.3,1.26765541]
[1763304809022,1.34661728,3175.4,3175.3,2.37876348]
[1763304809322,1.34661728,3175.4,3175.3,1.26765541]
[1763304810218,1.34661728,3175.4,3175.3,2.10143758]
[1763304811116,1.34661728,3175.4,3175.3,1.26765541]
[1763304811312,1.34661728,3175.4,3175.3,0.38643211]
[1763304811514,1.34661728,3175.4,3175.3,3.211e-05]
[1763304812025,7.34661728,3175.4,3175.3,3.211e-05]
[1763304812525,7.34661728,3175.4,3174.7,3.2078]
[1763304812526,1.2652,3174.6,3174.5,0.83378217]
[1763304812716,4.473,3174.6,3174.5,0.85034159]
[1763304814115,0.7682,3174.5,3174.0,0.83378217]
[1763304814424,0.7682,3174.5,3174.1,1.68503611]
[1763304814621,1.2652,3174.3,3174.2,0.85125394]
[1763304815926,1.2652,3174.3,3174.2,2.15695394]
[1763304816422,0.88683475,3174.3,3174.2,2.15695394]
[1763304817225,0.88683475,3174.3,3174.2,2.99073611]
[1763304818528,0.88683475,3174.3,3174.2,1.68503611]
[1763304819031,0.88683475,3174.3,3174.2,0.85125394]
[1763304819426,1.2652,3173.9,3173.8,0.83378217]
[1763304819730,1.2652,3173.6,3173.5,0.00784885]
[1763304819934,1.2652,3173.6,3173.5,0.85919651]
[1763304820434,1.2652,3173.6,3173.5,0.00784885]
[1763304824425,1.2652,3173.6,3173.5,0.39198587]
[1763304833037,1.2652,3173.6,3173.5,0.39163888]
[1763304841663,4.473,3173.6,3173.5,0.39163888]
[1763304841946,1.221,3173.1,3173.0,3.2078]
[1763304842852,1.22499157,3173.1,3173.0,3.2101606]
[1763304844159,1.22499157,3173.1,3173.0,4.0525411]
[1763304844843,1.22499157,3173.1,3173.0,0.8447411]
[1763304845044,1.22499157,3173.1,3173.0,0.0023606]
[1763304845245,1.22499157,3173.1,3173.0,0.84504859]
[1763304848155,1.22499157,3173.1,3173.0,2.06314859]
[1763304848355,0.00399157,3173.1,3173.0,2.06314859]
[1763304849149,3.2078,3173.2,3173.1,1.2181]
[1763304849348,4.4288,3173.6,3173.5,1.2181]
[1763304849553,3.2078,3173.6,3173.5,3.64610086]
[1763304849852,3.2078,3173.6,3173.5,3.91639606]
[1763304850152,3.21008738,3173.6,3173.5,3.91639606]
[1763304850354,3.21008738,3173.6,3173.5,7.12123298]
[1763304850355,0.00228738,3173.6,3173.5,7.12123298]
[1763304850745,1.22328738,3173.6,3173.5,5.15863298]
[1763304850945,1.22328738,3173.6,3173.5,0.83972491]
[1763304851250,0.00228738,3173.6,3173.5,3.6426438]
[1763304852154,0.00228738,3173.6,3173.5,2.80232491]
[1763304852748,0.00228738,3173.6,3173.5,4.46863643]
[1763304853248,0.00228738,3173.6,3173.5,2.80232491]
[1763304853851,4.4288,3174.4,3174.3,1.2181]
[1763304854059,4.4288,3174.4,3174.3,2.05782491]
[1763304854859,3.21141353,3174.4,3174.3,2.05782491]
[1763304855859,4.43241353,3174.4,3174.3,0.83972491]
[1763304856058,1.1986,3174.1,3173.7,4.04653146]
[1763304856250,3.21141353,3174.4,3174.0,1.1719]
[1763304856444,4.41001353,3174.4,3174.3,1.1719]
[1763304856649,3.21141353,3174.4,3174.3,1.1719]
[1763304856853,3.21141353,3174.4,3174.3,1.99600226]
[1763304857552,0.00361353,3174.4,3174.3,1.99600226]
[1763304858950,0.00361353,3174.4,3174.1,3.2078]
[1763304858951,1.1919,3174.2,3174.1,3.2078]
[1763304859150,0.00361353,3174.4,3174.1,5.14326659]
[1763304859350,1.19551353,3174.4,3174.3,1.112]
[1763304860161,1.1919,3174.2,3174.1,4.3198]
[1763304860459,1.1919,3174.2,3174.1,5.14296063]
[1763304861157,1.1919,3174.2,3174.1,1.93516063]
[1763304862363,1.19551353,3174.4,3174.3,1.112]
[1763304865667,1.19551353,3174.4,3174.0,3.2078]
[1763304865867,1.1919,3174.2,3174.1,1.93482019]
[1763304867358,1.1919,3174.1,3174.0,3.2078]
[1763304867765,1.1919,3173.7,3173.6,3.2078]
[1763304868468,1.1919,3173.7,3173.6,4.3198]
[1763304868663,0.6532,3174.0,3173.6,4.3198]
[1763304869366,1.0694,3173.7,3173.6,4.3198]
[1763304869568,1.0694,3173.7,3173.6,3.2078]
[1763304869868,0.6623,3173.5,3173.1,3.2078]
[1763304870069,1.0694,3173.2,3173.1,3.2078]
[1763304870969,1.0694,3173.1,3173.0,0.0023606]
[1763304871874,1.0694,3173.1,3173.0,1.0974606]
[1763304872772,3.8701,3173.5,3173.0,1.0974606]
[1763304872970,3.8701,3173.5,3173.0,1.7617606]
[1763304873768,3.8701,3173.5,3173.0,1.0974606]
[1763304874272,1.0694,3173.1,3173.0,1.0974606]
[1763304874473,3.8701,3173.5,3173.0,1.0974606]
[1763304877573,3.2078,3174.0,3173.9,1.0951]
[1763304878166,3.2078,3174.0,3173.9,1.91828309]
[1763304880562,0.00361353,3174.4,3173.9,1.91828309]
[1763304880767,3.21141353,3174.4,3174.0,0.82318309]
[1763304880970,3.21141353,3174.4,3173.7,4.04653146]
[1763304881274,3.21141353,3174.4,3173.8,0.82309401]
[1763304881476,3.21141353,3174.4,3173.9,0.82309401]
[1763304881667,3.21141353,3174.4,3174.0,0.82309401]
[1763304881871,3.21141353,3174.4,3173.7,4.04653146]
[1763304882070,4.28081353,3174.4,3174.3,1.0951]
[1763304884184,1.07301353,3174.4,3174.3,1.0951]
[1763304885174,1.0694,3173.9,3173.8,1.93383146]
[1763304885379,1.0694,3173.9,3173.8,0.82264723]
[1763304885583,1.0694,3173.8,3173.7,3.2078]
[1763304885783,1.0694,3173.8,3173.7,4.03072622]
[1763304886874,1.0694,3173.8,3173.7,3.2078]
[1763304887281,1.0694,3173.8,3173.7,4.03080902]
[1763304888382,1.0694,3173.8,3173.7,3.2078]
[1763304889182,1.0694,3173.8,3173.7,4.03094613]
[1763304890685,1.0694,3173.8,3173.7,0.82314613]
[1763304890892,1.7317,3173.5,3173.4,1.0951]
[1763304891188,1.7317,3173.5,3173.4,1.91834568]
[1763304892690,1.7317,3173.5,3173.4,0.82324568]
[1763304892991,1.7317,3173.5,3173.4,1.91834568]
[1763304900997,4.9395,3173.5,3173.4,0.82324568]
[1763304901194,0.9839,3173.1,3173.0,1.0186606]
[1763304901389,4.854,3173.5,3173.4,1.0163]